lending/lending_fUSD_20240522
["ID","MTS","AMOUNT","RATE_DAILY","PERIOD"]
[327732799,1716397423166,-104.2186904,0.00012654,2]
[327732800,1716397423193,-166.71,0.0001272,2]
[327732801,1716397423215,-502.0,0.0001272,2]
[327732802,1716397455927,-155.0,0.00012767,2]
[327732803,1716397455954,-3072.0713096,0.00012768,2]
[327732804,1716397464824,-213.70512266,0.00012768,2]
[327732805,1716397464845,-155.0,0.00012768,2]
[327732806,1716397464868,-155.0,0.00012768,2]
[327732807,1716397464889,-1566.03064875,0.00012769,2]
[327732808,1716397464912,-157.29,0.0001277,2]
[327732809,1716397464935,-322.59,0.00012787,2]
[327732810,1716397464956,-317.0719451,0.000128,2]
[327732811,1716397465931,1113.31228349,0.00012767,2]
[327732812,1716397468482,2000.0,0.00013242,3]
[327732813,1716397484644,-180.23015503,0.0001272,2]
[327732814,1716397484666,-409.86295543,0.0001272,2]
[327732815,1716397484825,-185.07791994,0.00012767,2]
[327732816,1716397496472,180.23015503,0.0001272,2]
[327732817,1716397497452,813.36194202,0.00012237,2]
[327732818,1716397502062,456.08942149,0.0001272,2]
[327732819,1716397506053,150.5,0.00019612,15]
[327732820,1716397506650,150.5,0.00019602,15]
[327732821,1716397507247,150.5,0.00019592,15]
[327732822,1716397516489,180.23015503,0.0001272,2]
[327732823,1716397519802,-4000.0,0.00012878,2]
[327732824,1716397520356,-272.13802936,0.00012878,2]
[327732825,1716397520378,-623.795218,0.00012878,2]
[327732826,1716397520401,-173.51087384,0.00012879,2]
[327732827,1716397520422,-155.0,0.00012882,2]
[327732828,1716397520446,-2775.5558788,0.00012882,2]
[327732829,1716397532481,180.23015503,0.0001272,2]
[327732831,1716397533523,-507.5687915,0.00012882,2]
[327732832,1716397533547,-1244.65551196,0.00012884,2]
[327732833,1716397533569,-2247.77569654,0.00012884,2]
[327732834,1716397534118,-156.49013382,0.00012884,2]
[327732835,1716397534139,-155.0,0.00012886,2]
[327732836,1716397534162,-1500.0,0.00012887,2]
[327732837,1716397534185,-2188.50986618,0.00012888,2]
[327732838,1716397534817,-4000.0,0.00012888,2]
[327732839,1716397541352,-626.42608207,0.00012881,2]
[327732840,1716397550012,-579.72932172,0.00012881,2]
[327732841,1716397550039,-1206.15540379,0.00012881,2]
[327732842,1716397550060,-1206.15540379,0.00012881,2]
[327732843,1716397550082,-1007.9598707,0.00012881,2]
[327732844,1716397550482,180.23015503,0.0001272,2]
[327732845,1716397555547,-198.19553309,0.00012881,2]
[327732846,1716397555575,-1206.15540379,0.00012881,2]
[327732847,1716397555597,-626.42608207,0.00012887,2]
[327732848,1716397555617,-155.0,0.00012887,2]
[327732849,1716397555638,-1814.22298105,0.00012888,2]
[327732850,1716397556079,-4000.0,0.00012888,2]
[327732851,1716397570630,180.04851818,0.0001272,2]
[327732852,1716397570723,-1214.44476273,0.00012887,2]
[327732853,1716397570746,-2222.64085019,0.00012887,2]
[327732854,1716397570769,-1267.10509768,0.00012887,2]
[327732855,1716397570791,-31318.63281111,0.00012888,2]
[327732856,1716397572192,1064.33887229,0.00012886,2]
[327732857,1716397572229,623.47628621,0.00012887,2]
[327732858,1716397573047,834.74999327,0.00012886,2]
[327732859,1716397576042,160.14575814,0.00012888,2]
[327732860,1716397576528,-519.88149272,0.00012889,2]
[327732861,1716397576553,-519.88149272,0.00012889,2]
[327732862,1716397576577,-519.88149272,0.00012889,2]
[327732863,1716397576600,-519.88149272,0.00012889,2]
[327732864,1716397576626,-519.88149272,0.00012889,2]
[327732865,1716397576650,-519.88149272,0.00012889,2]
[327732866,1716397576673,-519.88149272,0.00012889,2]
[327732867,1716397576696,-519.88149272,0.00012889,2]
[327732868,1716397576720,-519.88149272,0.00012889,2]
[327732869,1716397576742,-519.88149272,0.00012889,2]
[327732870,1716397576912,-519.88149272,0.00012889,2]
[327732871,1716397576936,-519.88149272,0.00012889,2]
[327732872,1716397576960,-519.88149272,0.00012889,2]
[327732873,1716397576982,-519.88149272,0.00012889,2]
[327732874,1716397577004,-519.88149272,0.00012889,2]
[327732875,1716397577026,-519.88149272,0.00012889,2]
[327732876,1716397577049,-519.88149272,0.00012889,2]
[327732877,1716397577072,-519.88149272,0.00012889,2]
[327732878,1716397577095,-519.88149272,0.00012889,2]
[327732879,1716397577116,-519.88149272,0.00012889,2]
[327732880,1716397577140,-519.88149272,0.00012889,2]
[327732881,1716397577162,-519.88149272,0.00012889,2]
[327732882,1716397577184,-519.88149272,0.00012889,2]
[327732883,1716397577206,-519.88149272,0.00012889,2]
[327732884,1716397577228,-519.88149272,0.00012889,2]
[327732885,1716397577250,-519.88149272,0.00012889,2]
[327732886,1716397577273,-519.88149272,0.00012889,2]
[327732887,1716397577296,-519.88149272,0.00012889,2]
[327732888,1716397577318,-519.88149272,0.00012889,2]
[327732889,1716397577340,-519.88149272,0.00012889,2]
[327732890,1716397577362,-519.88149272,0.00012889,2]
[327732891,1716397577386,-519.88149272,0.00012889,2]
[327732892,1716397577408,-519.88149272,0.00012889,2]
[327732893,1716397577430,-519.88149272,0.00012889,2]
[327732894,1716397577452,-519.88149272,0.00012889,2]
[327732895,1716397577475,-519.88149272,0.00012889,2]
[327732896,1716397577504,-519.88149272,0.00012889,2]
[327732897,1716397577527,-519.88149272,0.00012889,2]
[327732898,1716397577549,-519.88149272,0.00012889,2]
[327732899,1716397577575,-519.88149272,0.00012889,2]
[327732900,1716397577597,-519.88149272,0.00012889,2]
[327732901,1716397577620,-519.88149272,0.00012889,2]
[327732902,1716397577644,-519.88149272,0.00012889,2]
[327732903,1716397577667,-519.88149272,0.00012889,2]
[327732904,1716397577689,-519.88149272,0.00012889,2]
[327732905,1716397577712,-519.88149272,0.00012889,2]
[327732906,1716397577736,-519.88149272,0.00012889,2]
[327732907,1716397577760,-519.88149272,0.00012889,2]
[327732908,1716397577794,-519.88149272,0.00012889,2]
[327732909,1716397577822,-519.88149272,0.00012889,2]
[327732910,1716397577846,-519.88149272,0.00012889,2]
[327732911,1716397577870,-519.88149272,0.00012889,2]
[327732912,1716397577895,-519.88149272,0.00012889,2]
[327732913,1716397577919,-519.88149272,0.00012889,2]
[327732914,1716397577943,-519.88149272,0.00012889,2]
[327732915,1716397577968,-519.88149272,0.00012889,2]
[327732916,1716397577992,-519.88149272,0.00012889,2]
[327732917,1716397578015,-519.88149272,0.00012889,2]
[327732918,1716397578042,-519.88149272,0.00012889,2]
[327732919,1716397578066,-519.88149272,0.00012889,2]
[327732920,1716397578089,-519.88149272,0.00012889,2]
[327732921,1716397578111,-519.88149272,0.00012889,2]
[327732922,1716397578135,-519.88149272,0.00012889,2]
[327732923,1716397578159,-519.88149272,0.00012889,2]
[327732924,1716397578182,-519.88149272,0.00012889,2]
[327732925,1716397578205,-519.88149272,0.00012889,2]
[327732926,1716397578228,-519.88149272,0.00012889,2]
[327732927,1716397578250,-519.88149272,0.00012889,2]
[327732928,1716397578272,-519.88149272,0.00012889,2]
[327732929,1716397578295,-519.88149272,0.00012889,2]
[327732930,1716397578318,-519.88149272,0.00012889,2]
[327732931,1716397578341,-519.88149272,0.00012889,2]
[327732932,1716397578364,-519.88149272,0.00012889,2]
[327732933,1716397578389,-519.88149272,0.00012889,2]
[327732934,1716397578412,-519.88149272,0.00012889,2]
[327732935,1716397578600,-519.88149272,0.00012889,2]
[327732936,1716397578627,-519.88149272,0.00012889,2]
[327732937,1716397578650,-519.88149272,0.00012889,2]
[327732938,1716397578673,-519.88149272,0.00012889,2]
[327732939,1716397578696,-519.88149272,0.00012889,2]
[327732940,1716397578719,-519.88149272,0.00012889,2]
[327732941,1716397578742,-519.88149272,0.00012889,2]
[327732942,1716397578765,-519.88149272,0.00012889,2]
[327732943,1716397578788,-519.88149272,0.00012889,2]
[327732944,1716397578810,-519.88149272,0.00012889,2]
[327732945,1716397578832,-519.88149272,0.00012889,2]
[327732946,1716397578855,-519.88149272,0.00012889,2]
[327732947,1716397578879,-519.88149272,0.00012889,2]
[327732948,1716397578902,-519.88149272,0.00012889,2]
[327732949,1716397578924,-519.88149272,0.00012889,2]
[327732950,1716397578948,-519.88149272,0.00012889,2]
[327732951,1716397578972,-519.88149272,0.00012889,2]
[327732952,1716397578994,-519.88149272,0.00012889,2]
[327732953,1716397579019,-519.88149272,0.00012889,2]
[327732954,1716397579042,-519.88149272,0.00012889,2]
[327732955,1716397579065,-519.88149272,0.00012889,2]
[327732956,1716397579087,-519.88149272,0.00012889,2]
[327732957,1716397579110,-519.88149272,0.00012889,2]
[327732958,1716397579136,-519.88149272,0.00012889,2]
[327732959,1716397579159,-519.88149272,0.00012889,2]
[327732960,1716397580035,8000.0,0.00012888,2]
[327732961,1716397590934,11075.7619,0.00012799,2]
[327732962,1716397595012,317.07194508,0.000128,2]
[327732963,1716397598756,155.84106242,0.00012799,2]
[327732966,1716397600932,-155.0,0.00012896,2]
[327732967,1716397600954,-155.1408323,0.00012896,2]
[327732968,1716397600976,-1996.91763044,0.00012896,2]
[327732969,1716397600997,-513.39495988,0.00012896,2]
[327732970,1716397601020,-183.70461242,0.00012896,2]
[327732971,1716397601042,-446.62902304,0.00012897,2]
[327732972,1716397601065,-234.25383046,0.00012897,2]
[327732973,1716397601086,-499.99,0.00012897,2]
[327732974,1716397601107,-189.36434819,0.00012897,2]
[327732975,1716397601130,-248.54102972,0.00012897,2]
[327732976,1716397601152,-1496.06641608,0.00012897,2]
[327732977,1716397601173,-247.31978935,0.00012897,2]
[327732978,1716397601195,-157.37297207,0.00012897,2]
[327732979,1716397601219,-447.38068009,0.00012898,2]
[327732980,1716397601242,-14897.17718129,0.00012898,2]
[327732981,1716397601264,-83576.69541465,0.00012898,2]
[327732983,1716397625257,218.0,0.0001959,15]
[327732984,1716397625857,218.0,0.0001958,15]
[327732985,1716397626205,168.0,0.0001959,15]
[327732986,1716397627102,218.0,0.0001957,15]
[327732988,1716397644154,1061.54,0.00021589,30]
[327732989,1716397644751,600.0,0.000125,4]
[327732990,1716397645318,1061.54,0.00025135,30]
[327732991,1716397646893,1200.0,0.000126,4]
[327732992,1716397648988,1800.0,0.000127,4]
[327732993,1716397651254,2500.0,0.000128,4]
[327732995,1716397653408,3100.0,0.000129,4]
[327732996,1716397697530,318.37,0.00011124,2]
[327732997,1716397698686,-5000.0,0.00012888,2]
[327732998,1716397699880,-5000.0,0.00012888,2]
[327732999,1716397717785,165.81372397,0.00012796,2]
[327733000,1716397720799,-5000.0,0.00012888,2]
[327733001,1716397723445,165.81372396,0.00012798,2]
[327733002,1716397727739,165.81372396,0.00012799,2]
[327733003,1716397731407,-1979.27555,0.00012823,2]
[327733004,1716397731431,-307.55,0.00012884,2]
[327733005,1716397731454,-1713.17445,0.00012888,2]
[327733013,1716397790390,317.07194508,0.00012799,2]
[327733020,1716397821330,620.19264407,0.00033151,120]
[327733021,1716397831847,-614.77,0.00012862,2]
[327733022,1716397831856,-239.79640435,0.00012862,2]
[327733023,1716397832790,-2499.24912487,0.00012862,2]
[327733024,1716397832802,-597.65331933,0.00012862,2]
[327733025,1716397832828,-1057.3,0.00012862,2]
[327733026,1716397832839,-8666.292145,0.00012862,2]
[327733028,1716397837901,-10839.70900645,0.00012862,2]
[327733029,1716397837911,-910.29111817,0.00012888,2]
[327733030,1716397837922,-1000.01492013,0.00012888,2]
[327733031,1716397837985,-413.8762885,0.00012888,2]
[327733032,1716397837996,-781.12573863,0.00012888,2]
[327733033,1716397838066,-3584.75850775,0.00012888,2]
[327733034,1716397838076,-189.7938559,0.00012888,2]
[327733035,1716397838086,-151.96,0.00012889,2]
[327733036,1716397838095,-150.0,0.00012895,2]
[327733037,1716397838104,-150.0,0.00012895,2]
[327733038,1716397838114,-228.71692358,0.00012896,2]
[327733039,1716397838123,-233.89339736,0.00012896,2]
[327733040,1716397838133,-1877.47122069,0.00012896,2]
[327733041,1716397838143,-491.24238194,0.00012896,2]
[327733042,1716397838152,-883.32528591,0.00012897,2]
[327733043,1716397838162,-59949.20212724,0.00012898,2]
[327733044,1716397838181,-2600.070147,0.00012898,2]
[327733058,1716397840004,-525671.52800582,0.00012898,2]
[327733060,1716397840014,-154213.18260717,0.00012899,2]
[327733071,1716397843080,-100533.03811212,0.00012899,2]
[327733072,1716397843093,-1880.85,0.00012899,2]
[327733075,1716397843109,-2068.42953908,0.00012899,2]
[327733077,1716397843121,-6100.14765098,0.00012899,2]
[327733122,1716397843446,-866.3071139,0.00012899,2]
[327733145,1716397843587,-1539.10589287,0.00012899,2]
[327733196,1716397845741,-3032.51144869,0.00012899,2]
[327733198,1716397845753,-128191.11713519,0.00012899,2]
[327733199,1716397845762,-655.86876789,0.000129,2]
[327733200,1716397845773,-3409.50319536,0.000129,2]
[327733201,1716397845783,-160.62683901,0.000129,2]
[327733202,1716397845792,-161.34324561,0.000129,2]
[327733203,1716397845801,-242.07913725,0.000129,2]
[327733204,1716397845810,-250.0,0.00012967,2]
[327733205,1716397845819,-260.0,0.00012986,2]
[327733206,1716397845828,-1382.0,0.00012986,2]
[327733207,1716397845838,-151.96,0.0001299,2]
[327733208,1716397845847,-151.96,0.0001299,2]
[327733209,1716397845856,-151.96,0.0001299,2]
[327733210,1716397845865,-151.96,0.0001299,2]
[327733211,1716397845876,-151.96,0.0001299,2]
[327733212,1716397845885,-151.96,0.0001299,2]
[327733213,1716397845895,-151.96,0.0001299,2]
[327733214,1716397845904,-151.96,0.0001299,2]
[327733215,1716397845913,-151.96,0.0001299,2]
[327733216,1716397845922,-151.96,0.0001299,2]
[327733217,1716397845931,-157.29,0.00012992,2]
[327733218,1716397845942,-788.17956716,0.00012998,2]
[327733219,1716397845951,-656.39657241,0.00012999,2]
[327733220,1716397845960,-150.0,0.00012999,2]
[327733221,1716397845969,-39757.50151808,0.00013,2]
[327733222,1716397846014,-1188.35,0.00013,2]
[327733223,1716397846025,-1141.42087886,0.00013,2]
[327733224,1716397846036,-6740.2,0.00013,2]
[327733225,1716397846047,-522.93853237,0.00013,2]
[327733226,1716397846089,-35629.31438915,0.00013,2]
[327733227,1716397867250,744.57940984,0.00011699,2]
[327733228,1716397869514,151.0,0.00024854,30]
[327733229,1716397869745,151.0,0.00024357,120]
[327733230,1716397874914,829.36486409,9.647e-05,2]
[327733231,1716397880002,3135.1335,0.00012798,2]
[327733232,1716397912032,2192.3046,0.00012798,2]
[327733240,1716397947236,3400.0,0.00012762,2]
[327733241,1716397983584,3038.47,0.00033,120]
[327733242,1716397985546,152.0,0.00019602,15]
[327733243,1716397986294,152.0,0.00019592,15]
[327733244,1716397987006,152.0,0.00019582,15]
[327733248,1716398122925,943.59,0.00021589,30]
[327733249,1716398123305,943.59,0.00025135,30]
[327733250,1716398345336,150.5,0.00019602,15]
[327733251,1716398345726,150.5,0.00019592,15]
[327733252,1716398345797,1019.36612948,0.00012759,2]
[327733253,1716398346314,150.5,0.00019582,15]
[327733258,1716398543196,1303.27,0.00033,120]
[327733259,1716398624587,838.74,0.00021589,30]
[327733260,1716398624943,838.74,0.00025135,30]
[327733261,1716398705203,150.5,0.0001958,15]
[327733262,1716398705848,150.5,0.0001957,15]
[327733263,1716398706446,150.5,0.0001956,15]
[327733265,1716398739743,-1050.0,0.00012895,2]
[327733266,1716398739764,-200.0,0.00012896,2]
[327733267,1716398739786,-1000.0,0.00012896,2]
[327733268,1716398739807,-500.0,0.00012896,2]
[327733269,1716398739828,-243.4947755,0.000129,2]
[327733270,1716398739851,-2006.5052245,0.000129,2]
[327733271,1716398740746,-2174.3134755,0.000129,2]
[327733272,1716398740769,-2825.6865245,0.000129,2]
[327733273,1716398741057,-614.89861987,0.000129,2]
[327733274,1716398741078,-573.88517186,0.000129,2]
[327733275,1716398741101,-363.01963762,0.000129,2]
[327733276,1716398741122,-317.07194508,0.000129,2]
[327733277,1716398741148,-3131.12462557,0.000129,2]
[327733278,1716398741666,-2126.08569048,0.000129,2]
[327733279,1716398741688,-172.91734175,0.000129,2]
[327733280,1716398741710,-897.99875,0.0001292,2]
[327733281,1716398741731,-180.66,0.00012928,2]
[327733282,1716398741754,-897.99875,0.0001296,2]
[327733283,1716398741776,-724.33946777,0.00012986,2]
[327733284,1716398742571,-1159.53972428,0.00012986,2]
[327733285,1716398742593,-183.13892962,0.0001299,2]
[327733286,1716398742615,-151.97,0.0001299,2]
[327733287,1716398742636,-151.97,0.0001299,2]
[327733288,1716398742658,-151.97,0.0001299,2]
[327733289,1716398742679,-151.97,0.0001299,2]
[327733290,1716398742701,-1761.99980082,0.00012999,2]
[327733300,1716398757955,161.3860915,0.000129,2]
[327733301,1716398761518,160.83407833,0.000129,2]
[327733302,1716398777876,965.22137545,0.00012999,2]
[327733303,1716398789144,-5000.0,0.00012999,2]
[327733304,1716398789578,-5000.0,0.00012999,2]
[327733305,1716398812887,-242.01309176,0.000129,2]
[327733306,1716398812909,-3757.98690824,0.00012998,2]
[327733307,1716398813421,-4000.0,0.00012998,2]
[327733308,1716398814033,-2349.54460905,0.00012998,2]
[327733309,1716398814054,-1650.45539095,0.00012999,2]
[327733310,1716398814653,-4000.0,0.00012999,2]
[327733311,1716398815241,-3384.3232336,0.00012999,2]
[327733312,1716398815267,-615.6767664,0.00013,2]
[327733313,1716398834386,-4000.0,0.00012999,2]
[327733314,1716398834920,-4000.0,0.00012999,2]
[327733315,1716398836555,-4000.0,0.00012999,2]
[327733316,1716398837386,-3000.0,0.00012999,2]
[327733317,1716398837410,-1000.0,0.00013,2]
[327733318,1716398838017,-4000.0,0.00013,2]
[327733319,1716398838974,-4000.0,0.00013,2]
[327733321,1716398839673,-4000.0,0.00013,2]
[327733322,1716398886366,-317.07194508,0.000129,2]
[327733323,1716398886388,-2294.92805492,0.00012965,2]
[327733357,1716399032047,-155.0,0.00012898,2]
[327733358,1716399032057,-281.40588158,0.00012899,2]
[327733359,1716399032168,-924.74952221,0.00012899,2]
[327733360,1716399032178,-161.34206116,0.000129,2]
[327733361,1716399032187,-2739.83085906,0.000129,2]
[327733362,1716399032197,-151.98,0.0001299,2]
[327733363,1716399032207,-151.98,0.0001299,2]
[327733364,1716399032216,-534.66822469,0.00012999,2]
[327733365,1716399032226,-7628.19671639,0.00013,2]
[327733366,1716399032237,-636348.07444762,0.00013,2]
[327733367,1716399032250,-3777.00000001,0.00013,2]
[327733368,1716399032262,-1933.01489927,0.00013,2]
[327733369,1716399032406,-13926.78006513,0.00013,2]
[327733370,1716399032419,-995.87545876,0.00013,2]
[327733371,1716399032430,-68380.86,0.00013,2]
[327733372,1716399032442,-740.58240107,0.00013,2]
[327733373,1716399032454,-500.53973003,0.00013,2]
[327733374,1716399032465,-3418.55193141,0.00013,2]
[327733375,1716399033471,-1047.0,0.00013,2]
[327733376,1716399033484,-4654.44,0.00013,2]
[327733377,1716399033495,-1581.72744129,0.00013,2]
[327733381,1716399033978,-0.96618751,0.00013,2]
[327733382,1716399033990,-540.35593476,0.00013,2]
[327733383,1716399034003,-566.55211337,0.00013,2]
[327733385,1716399038176,-7564.00000018,0.00013,2]
[327733386,1716399039012,-464.51322832,0.00013,2]
[327733387,1716399039142,-263.8,0.00013,2]
[327733388,1716399039155,-1050.00204338,0.00013,2]
[327733389,1716399039168,-365522.42878707,0.00013,2]
[327733394,1716399043075,-317.07194508,0.000129,2]
[327733395,1716399043084,-13149.96413163,0.00013,2]
[327733396,1716399043096,-49891.83235713,0.00013,2]
[327733397,1716399043108,-2822.1253428,0.00013,2]
[327733399,1716399043122,-944.53715063,0.00013,2]
[327733400,1716399043134,-2495.58714316,0.00013,2]
[327733401,1716399043148,-840.5182671,0.00013,2]
[327733402,1716399043160,-876.08835675,0.00013,2]
[327733407,1716399043794,-6509.54839722,0.00013,2]
[327733408,1716399043813,-11322.30067832,0.00013,2]
[327733409,1716399043855,-266.7393473,0.00012999,2]
[327733410,1716399043870,-125.55555647,0.00013,2]
[327733411,1716399043889,-2279.79820878,0.00013,2]
[327733412,1716399043910,-348.04079335,0.00013,2]
[327733413,1716399043931,-3138.12070833,0.00013,2]
[327733414,1716399043962,-343.30762,0.00013,2]
[327733415,1716399043980,-357.69482547,0.00013,2]
[327733416,1716399043999,-6278.0,0.00013,2]
[327733438,1716399046057,-389.63124367,0.00013,2]
[327733439,1716399046069,-6112.69279021,0.00013,2]
[327733440,1716399046080,-3210.5,0.00013,2]
[327733441,1716399046091,-319.11336615,0.00013,2]
[327733442,1716399046207,-350.85670494,0.00013,2]
[327733443,1716399046220,-70358.00000004,0.00013,2]
[327733444,1716399046232,-2030.81171266,0.00013,2]
[327733445,1716399046243,-1020.83631643,0.00013,2]
[327733446,1716399046256,-378.79104645,0.00013,2]
[327733447,1716399046267,-757.25445626,0.00013,2]
[327733448,1716399046279,-275.919,0.00013,2]
[327733449,1716399046350,-640.7472672,0.00013,2]
[327733450,1716399046361,-3920.780729,0.00013,2]
[327733451,1716399046379,-19409.98507011,0.00013,2]
[327733452,1716399046391,-465.45006,0.00013,2]
[327733453,1716399046403,-469.65,0.00013,2]
[327733454,1716399046414,-750.52233814,0.00013,2]
[327733459,1716399066200,168.0,0.0001959,15]
[327733464,1716399110061,1532.68436418,0.00012785,2]
[327733476,1716399126406,863.52,0.00021589,30]
[327733477,1716399126837,863.52,0.00025135,30]
[327733483,1716399346900,157.37297207,0.00012768,2]
[327733484,1716399425069,150.5,0.00019634,15]
[327733485,1716399425722,150.5,0.00019624,15]
[327733486,1716399426635,150.5,0.00019614,15]
[327733492,1716399620500,767.57,0.00021589,30]
[327733493,1716399620836,767.57,0.00025135,30]
[327733495,1716399714153,250.0,0.00012079,2]
[327733497,1716399738102,10958.76,0.00012079,2]
[327733499,1716399905959,-248.68030682,0.00012869,2]
[327733500,1716399906175,-598.66583,0.0001287,2]
[327733501,1716399906220,-10529.4669443,0.00012899,2]
[327733502,1716399906264,-194.7958204,0.000129,2]
[327733503,1716399906308,-6751.3048,0.000129,2]
[327733504,1716399906353,-3153.86971559,0.000129,2]
[327733505,1716399906397,-155.8410624,0.000129,2]
[327733506,1716399906445,-161.3860915,0.000129,2]
[327733507,1716399906494,-1826.55390604,0.000129,2]
[327733508,1716399906542,-151.99,0.0001299,2]
[327733509,1716399906589,-151.99,0.0001299,2]
[327733510,1716399906737,-170.89107161,0.00012998,2]
[327733511,1716399906781,-283.005,0.00012998,2]
[327733512,1716399906824,-535.70431,0.00012998,2]
[327733513,1716399906866,-250.52612615,0.00012998,2]
[327733514,1716399906911,-156.19946984,0.00012999,2]
[327733515,1716399906955,-364.27737293,0.00012999,2]
[327733516,1716399907002,-2362.29532977,0.00012999,2]
[327733517,1716399907046,-150.01,0.00012999,2]
[327733518,1716399907098,-5873.01300745,0.00012999,2]
[327733519,1716399907146,-682137.71617051,0.00013,2]
[327733520,1716399907190,-283791.81766469,0.00013,2]
[327733521,1716399926537,-767.57,0.0002868,30]
[327733522,1716399926593,-5724.43527333,0.0003,30]
[327733523,1716399926641,-2031.40277932,0.0003,30]
[327733524,1716399950297,2965.7968536,0.0003,30]
[327733529,1716400123223,1360.0494024,0.00033,120]
[327733569,1716400232348,639.64,0.00021589,30]
[327733570,1716400232392,-150.0,0.00012877,2]
[327733571,1716400232411,-160.83407832,0.000129,2]
[327733572,1716400232432,-781.12573863,0.0001299,2]
[327733573,1716400232452,-151.99,0.0001299,2]
[327733574,1716400232465,-887.15078657,0.00012998,2]
[327733575,1716400232487,-604.135,0.00012998,2]
[327733576,1716400232507,-538.88,0.00012998,2]
[327733577,1716400232523,-112.77077507,0.00012998,2]
[327733578,1716400232541,-150.01,0.00012999,2]
[327733579,1716400232557,-943.3383037,0.00012999,2]
[327733580,1716400232571,-19677.72232246,0.00013,2]
[327733581,1716400232590,-4905.68029868,0.00013,2]
[327733582,1716400232607,-3594.55594661,0.00013,2]
[327733583,1716400232627,-773.68970771,0.00013,2]
[327733584,1716400232645,-2015.29501095,0.00013,2]
[327733585,1716400232662,-6845.67216,0.00013,2]
[327733586,1716400232719,-4512.90651215,0.00013,2]
[327733590,1716400232737,-346.880378,0.00013,2]
[327733595,1716400232755,-1307.72495406,0.00013,2]
[327733600,1716400232772,-778.63384695,0.00013,2]
[327733605,1716400232793,-18025.0,0.00013,2]
[327733607,1716400232811,-12320.00000575,0.00013,2]
[327733608,1716400232829,-3655.23039409,0.00013,2]
[327733609,1716400232943,639.64,0.00025135,30]
[327733610,1716400232986,-230346.91564055,0.00013,2]
[327733611,1716400233005,-1947.92231104,0.00013,2]
[327733612,1716400233375,639.64,0.0002868,30]
[327733618,1716400238624,-419299.99999988,0.00013,2]
[327733620,1716400239074,-2415.42535439,0.00013,2]
[327733622,1716400239085,-705.8091,0.00013,2]
[327733769,1716400240506,-3424.5,0.00013,2]
[327733771,1716400240518,-18933.60490722,0.00013,2]
[327733785,1716400240858,-427.08391972,0.00013,2]
[327733786,1716400240984,-2012.7728427,0.00013,2]
[327733790,1716400243177,-180249.99996,0.00013,2]
[327733791,1716400243188,-1009.71667059,0.00013,2]
[327733801,1716400244053,-161.3860915,0.000129,2]
[327733802,1716400244063,-482164.2055785,0.00013,2]
[327733803,1716400244072,-22141.85689939,0.00013,2]
[327733804,1716400244081,-218689.43725003,0.00013,2]
[327733805,1716400245972,-301.616,0.00013,2]
[327733806,1716400247743,-977.27155151,0.000129,2]
[327733827,1716400250738,192.7333,0.000128,2]
[327733828,1716400265172,150.5,0.00019614,15]
[327733829,1716400265921,150.5,0.00019604,15]
[327733830,1716400266503,150.5,0.00019594,15]
[327733837,1716400362580,380.41775474,0.00012668,2]
[327733838,1716400363175,1566.03064875,0.00012661,2]
[327733839,1716400385949,292.5,0.00019584,15]
[327733840,1716400517402,313.83474584,0.00012346,2]
[327733841,1716400525052,451.99247167,0.00011566,2]
[327733842,1716400758607,533.03,0.00021589,30]
[327733843,1716400759018,533.03,0.00025135,30]
[327733844,1716400759391,533.03,0.0002868,30]
[327733865,1716400811877,1464.93,0.00033,120]
[327733866,1716400826471,150.0,0.00010544,2]
[327733867,1716400936679,359.7,0.00010446,2]
[327733868,1716400937070,359.7,0.0001271,2]
[327733869,1716400952995,292.82,0.00012364,2]
[327733870,1716400987662,380.41775474,0.00012607,2]